fUSD/lending_fUSD_20260524
["ID","MTS","AMOUNT","RATE_DAILY","PERIOD"]
[422902617,1779597038000,-123478.43944115,0.000107,2]
[422902666,1779597038000,-610.8645825,0.00013699,2]
[422902737,1779597038000,-610.8645825,0.00013699,2]
[422902667,1779597038000,-610.8645825,0.00013699,2]
[422902718,1779597038000,-610.8645825,0.00013699,2]
[422902704,1779597038000,-610.8645825,0.00013699,2]
[422902707,1779597038000,-610.8645825,0.00013699,2]
[422902719,1779597038000,-610.8645825,0.00013699,2]
[422902721,1779597038000,-610.8645825,0.00013699,2]
[422902724,1779597038000,-610.8645825,0.00013699,2]
[422902725,1779597038000,-610.8645825,0.00013699,2]
[422902733,1779597038000,-610.8645825,0.00013699,2]
[422902727,1779597038000,-610.8645825,0.00013699,2]
[422902730,1779597038000,-610.8645825,0.00013699,2]
[422902731,1779597038000,-610.8645825,0.00013699,2]
[422902741,1779597038000,-610.8645825,0.00013699,2]
[422902739,1779597038000,-610.8645825,0.00013699,2]
[422902743,1779597038000,-610.8645825,0.00013699,2]
[422902744,1779597038000,-610.8645825,0.00013699,2]
[422902746,1779597038000,-610.8645825,0.00013699,2]
[422902748,1779597038000,-3786.0910825,0.00013699,2]
[422902749,1779597038000,-3786.0910825,0.00013699,2]
[422902751,1779597038000,-3786.0910825,0.00013699,2]
[422902752,1779597038000,-3786.0910825,0.00013699,2]
[422902753,1779597038000,-3786.0910825,0.00013699,2]
[422902754,1779597038000,-3786.0910825,0.00013699,2]
[422902668,1779597038000,-610.8645825,0.00013699,2]
[422902702,1779597038000,-610.8645825,0.00013699,2]
[422902714,1779597038000,-610.8645825,0.00013699,2]
[422902735,1779597038000,-610.8645825,0.00013699,2]
[422902712,1779597038000,-610.8645825,0.00013699,2]
[422902660,1779597038000,-610.8645825,0.00013699,2]
[422902700,1779597038000,-610.8645825,0.00013699,2]
[422902659,1779597038000,-610.8645825,0.00013699,2]
[422902663,1779597038000,-610.8645825,0.00013699,2]
[422902661,1779597038000,-610.8645825,0.00013699,2]
[422902665,1779597038000,-610.8645825,0.00013699,2]
[422902664,1779597038000,-610.8645825,0.00013699,2]
[422902681,1779597038000,-610.8645825,0.00013699,2]
[422902683,1779597038000,-610.8645825,0.00013699,2]
[422902685,1779597038000,-610.8645825,0.00013699,2]
[422902690,1779597038000,-610.8645825,0.00013699,2]
[422902687,1779597038000,-610.8645825,0.00013699,2]
[422902662,1779597038000,-610.8645825,0.00013699,2]
[422902692,1779597038000,-610.8645825,0.00013699,2]
[422902716,1779597038000,-610.8645825,0.00013699,2]
[422902709,1779597038000,-610.8645825,0.00013699,2]
[422902698,1779597038000,-610.8645825,0.00013699,2]
[422902676,1779597038000,-610.8645825,0.00013699,2]
[422902674,1779597038000,-610.8645825,0.00013699,2]
[422902710,1779597038000,-610.8645825,0.00013699,2]
[422902672,1779597038000,-610.8645825,0.00013699,2]
[422902670,1779597038000,-610.8645825,0.00013699,2]
[422902696,1779597038000,-610.8645825,0.00013699,2]
[422902694,1779597038000,-610.8645825,0.00013699,2]
[422902679,1779597038000,-610.8645825,0.00013699,2]
[422902798,1779597039000,-700.0,0.000147,5]
[422902797,1779597039000,-5758.32553727,0.00014629,2]
[422902807,1779597039000,-153.9604945,0.00014986,2]
[422902793,1779597039000,-150.0,0.00014612,2]
[422902792,1779597039000,-300.0,0.000146,5]
[422902784,1779597039000,-3292.0,0.00013708,2]
[422902794,1779597039000,-500.0,0.00014628,2]
[422902791,1779597039000,-1640.84,0.00014557,2]
[422902788,1779597039000,-150.0,0.00014237,2]
[422902789,1779597039000,-165.96,0.00014485,2]
[422902786,1779597039000,-150.0,0.00013987,2]
[422902795,1779597039000,-179.08906605,0.00014628,2]
[422902808,1779597039000,-155.47794671,0.00014986,2]
[422902817,1779597039000,-500.0,0.00014999,2]
[422902809,1779597039000,-153.86032323,0.00014986,2]
[422902801,1779597039000,-12329.98619292,0.000149,2]
[422902802,1779597039000,-1400.0,0.000149,5]
[422902806,1779597039000,-151.86265995,0.00014986,2]
[422902804,1779597039000,-482.27053842,0.00014926,2]
[422902803,1779597039000,-786.07309635,0.000149,2]
[422902799,1779597039000,-1000.0,0.000148,5]
[422902800,1779597039000,-150.0,0.00014865,2]
[422902805,1779597039000,-289.66932996,0.00014986,2]
[422902810,1779597039000,-152.88068691,0.00014986,2]
[422902821,1779597039000,-502.20271586,0.00014999,2]
[422902790,1779597039000,-150.0,0.00014487,2]
[422902796,1779597039000,-597.28430301,0.00014628,2]
[422902787,1779597039000,-250.0,0.00014,2]
[422902758,1779597039000,-3786.0910825,0.00013699,2]
[422902783,1779597039000,-3786.0910825,0.00013699,2]
[422902755,1779597039000,-3786.0910825,0.00013699,2]
[422902759,1779597039000,-3786.0910825,0.00013699,2]
[422902757,1779597039000,-3786.0910825,0.00013699,2]
[422902756,1779597039000,-3786.0910825,0.00013699,2]
[422902814,1779597039000,-292.22526449,0.0001499,2]
[422902760,1779597039000,-3786.0910825,0.00013699,2]
[422902761,1779597039000,-3786.0910825,0.00013699,2]
[422902763,1779597039000,-3786.0910825,0.00013699,2]
[422902762,1779597039000,-3786.0910825,0.00013699,2]
[422902767,1779597039000,-3786.0910825,0.00013699,2]
[422902764,1779597039000,-3786.0910825,0.00013699,2]
[422902765,1779597039000,-3786.0910825,0.00013699,2]
[422902768,1779597039000,-3786.0910825,0.00013699,2]
[422902785,1779597039000,-150.0,0.00013862,2]
[422902770,1779597039000,-3786.0910825,0.00013699,2]
[422902766,1779597039000,-3786.0910825,0.00013699,2]
[422902777,1779597039000,-3786.0910825,0.00013699,2]
[422902778,1779597039000,-3786.0910825,0.00013699,2]
[422902779,1779597039000,-3786.0910825,0.00013699,2]
[422902780,1779597039000,-3786.0910825,0.00013699,2]
[422902781,1779597039000,-3786.0910825,0.00013699,2]
[422902782,1779597039000,-3786.0910825,0.00013699,2]
[422902772,1779597039000,-3786.0910825,0.00013699,2]
[422902776,1779597039000,-3786.0910825,0.00013699,2]
[422902773,1779597039000,-3786.0910825,0.00013699,2]
[422902771,1779597039000,-3786.0910825,0.00013699,2]
[422902774,1779597039000,-3786.0910825,0.00013699,2]
[422902775,1779597039000,-3786.0910825,0.00013699,2]
[422902769,1779597039000,-3786.0910825,0.00013699,2]
[422902812,1779597039000,-242.48339477,0.00014986,2]
[422902818,1779597039000,-500.0,0.00014999,2]
[422902823,1779597039000,-500.0,0.00014999,3]
[422902850,1779597039000,-453.90085798,0.00016,2]
[422902851,1779597039000,-502.3605091,0.00016075,2]
[422902852,1779597039000,-200.92116636,0.000161,7]
[422902859,1779597039000,-502.0,0.00016329,2]
[422902862,1779597039000,-745.6,0.00016438,2]
[422902865,1779597039000,-251.64801,0.00016438,2]
[422902861,1779597039000,-500.0,0.00016384,2]
[422902863,1779597039000,-251.64801,0.00016438,2]
[422902860,1779597039000,-200.0,0.0001634,2]
[422902864,1779597039000,-251.64801,0.00016438,2]
[422902853,1779597039000,-453.90085798,0.000161,2]
[422902855,1779597039000,-9999.99,0.00016116,2]
[422902854,1779597039000,-1650.0,0.0001611,15]
[422902856,1779597039000,-1640.84,0.00016175,2]
[422902857,1779597039000,-453.90085798,0.000162,2]
[422902868,1779597039000,-13060.24096751,0.000165,2]
[422902869,1779597039000,-1000.0,0.000165,2]
[422902866,1779597039000,-251.64801,0.00016438,2]
[422902867,1779597039000,-6613.54001206,0.000165,2]
[422902870,1779597039000,-975.0,0.00016509,2]
[422902871,1779597039000,-12329.98619286,0.00016548,2]
[422902874,1779597039000,-1016.14,0.00017032,2]
[422902872,1779597039000,-477.18463989,0.00016997,2]
[422902876,1779597039000,-12329.98619286,0.00017097,2]
[422902877,1779597039000,-500.0,0.000171,2]
[422902878,1779597039000,-2000.0,0.000171,2]
[422902822,1779597039000,-500.0,0.00014999,2]
[422902844,1779597039000,-1539.0,0.00015079,2]
[422902849,1779597039000,-12329.98619286,0.00015999,2]
[422902858,1779597039000,-150.0,0.00016235,2]
[422902845,1779597039000,-1517.64,0.000153,2]
[422902846,1779597039000,-12329.98619286,0.00015449,2]
[422902813,1779597039000,-154.27302098,0.00014986,2]
[422902816,1779597039000,-500.0,0.00014999,2]
[422902819,1779597039000,-500.0,0.00014999,2]
[422902815,1779597039000,-151.0,0.00014997,2]
[422902811,1779597039000,-153.6589886,0.00014986,2]
[422902824,1779597039000,-500.0,0.00014999,4]
[422902827,1779597039000,-500.0,0.00014999,2]
[422902826,1779597039000,-601.7594973,0.00014999,2]
[422902825,1779597039000,-500.0,0.00014999,2]
[422902830,1779597039000,-300.0,0.00014999,2]
[422902836,1779597039000,-152.52919,0.00015,2]
[422902828,1779597039000,-500.0,0.00014999,2]
[422902829,1779597039000,-500.0,0.00014999,2]
[422902820,1779597039000,-574.32140782,0.00014999,2]
[422902837,1779597039000,-151.0,0.00015,2]
[422902835,1779597039000,-151.0,0.00015,2]
[422902847,1779597039000,-150.0,0.0001555,2]
[422902843,1779597039000,-151.0,0.00015068,2]
[422902842,1779597039000,-151.0,0.00015068,2]
[422902839,1779597039000,-289.425807,0.00015,2]
[422902840,1779597039000,-1252.0,0.00015026,2]
[422902848,1779597039000,-2271.40549563,0.00015807,2]
[422902838,1779597039000,-151.0,0.00015,2]
[422902833,1779597039000,-1561.13,0.00015,2]
[422902831,1779597039000,-779732.50545041,0.00015,2]
[422902834,1779597039000,-351.25911588,0.00015,2]
[422902832,1779597039000,-1660421.27814378,0.00015,2]
[422902841,1779597039000,-426.0,0.00015061,2]
[422902919,1779597040000,-9999.99,0.00019339,2]
[422902916,1779597040000,-177.708708,0.00019178,2]
[422902915,1779597040000,-151.0,0.00019178,2]
[422902921,1779597040000,-1640.84,0.0001941,2]
[422902914,1779597040000,-364.23786313,0.0001901,7]
[422902917,1779597040000,-155.712414,0.00019178,2]
[422902913,1779597040000,-5234.33859492,0.00019,2]
[422902918,1779597040000,-12329.98619286,0.00019295,2]
[422902912,1779597040000,-1690.0,0.00019,2]
[422902909,1779597040000,-745.6,0.0001841,2]
[422902922,1779597040000,-198.159317,0.00019545,2]
[422902911,1779597040000,-482.27053839,0.00018838,2]
[422902923,1779597040000,-170.78483,0.00019545,2]
[422902928,1779597040000,-151.0,0.0001965,2]
[422902927,1779597040000,-151.0,0.0001965,2]
[422902934,1779597040000,-1798.80895522,0.0001965,2]
[422902925,1779597040000,-151.0,0.0001965,2]
[422902930,1779597040000,-151.0,0.0001965,2]
[422902932,1779597040000,-151.0,0.0001965,2]
[422902931,1779597040000,-198.97225456,0.0001965,2]
[422902933,1779597040000,-206.33422798,0.0001965,2]
[422902929,1779597040000,-191.87295522,0.0001965,2]
[422902926,1779597040000,-200.0,0.0001965,2]
[422902946,1779597040000,-151.0,0.0001965,2]
[422902936,1779597040000,-213.96859442,0.0001965,2]
[422902947,1779597040000,-151.0,0.0001965,2]
[422902920,1779597040000,-27701.77,0.00019339,2]
[422902924,1779597040000,-208.44,0.00019594,2]
[422902910,1779597040000,-12329.98619286,0.00018745,2]
[422902935,1779597040000,-151.0,0.0001965,2]
[422902908,1779597040000,-12329.98619286,0.00018196,2]
[422902880,1779597040000,-15651.53926381,0.00017553,2]
[422902882,1779597040000,-12329.98619286,0.00017647,2]
[422902884,1779597040000,-792.76240828,0.000177,2]
[422902883,1779597040000,-5758.32553727,0.00017653,2]
[422902881,1779597040000,-150.0,0.00017588,2]
[422902885,1779597040000,-403.0,0.000177,5]
[422902879,1779597040000,-2444.36664398,0.00017553,2]
[422902893,1779597040000,-500.0,0.00017899,2]
[422902894,1779597040000,-528.83033071,0.00017899,5]
[422902895,1779597040000,-500.0,0.00017899,2]
[422902896,1779597040000,-28229.42923773,0.000179,2]
[422902892,1779597040000,-300.0,0.00017899,2]
[422902888,1779597040000,-650.0,0.00017887,2]
[422902887,1779597040000,-2500.0,0.00017887,2]
[422902889,1779597040000,-1350.0,0.00017887,7]
[422902886,1779597040000,-1640.84,0.00017792,2]
[422902891,1779597040000,-151.0,0.00017897,2]
[422902900,1779597040000,-378.19470933,0.00017919,2]
[422902897,1779597040000,-28229.42923773,0.000179,2]
[422902899,1779597040000,-28229.42923773,0.000179,2]
[422902902,1779597040000,-110828.26471776,0.00018,2]
[422902898,1779597040000,-28229.42923773,0.000179,2]
[422902901,1779597040000,-300.0,0.00017999,2]
[422902903,1779597040000,-1207.11017478,0.00018,2]
[422902904,1779597040000,-237.93330455,0.00018,2]
[422902906,1779597040000,-1561.13,0.000181,2]
[422902905,1779597040000,-1801.35715722,0.000181,2]
[422902907,1779597040000,-786.07309635,0.00018108,2]
[422902938,1779597040000,-151.0,0.0001965,2]
[422902890,1779597040000,-1238.8775972,0.0001789,2]
[422902945,1779597040000,-247.43723804,0.0001965,2]
[422902968,1779597040000,-151.0,0.0001965,2]
[422902975,1779597040000,-151.0,0.0001965,2]
[422902978,1779597040000,-151.0,0.0001965,2]
[422902976,1779597040000,-500.0,0.0001965,2]
[422902977,1779597040000,-151.0,0.0001965,2]
[422902980,1779597040000,-151.0,0.0001965,2]
[422902979,1779597040000,-500.0,0.0001965,2]
[422902981,1779597040000,-151.0,0.0001965,2]
[422902984,1779597040000,-151.0,0.0001965,2]
[422902982,1779597040000,-500.0,0.0001965,2]
[422902999,1779597040000,-2000.0,0.000199,2]
[422902983,1779597040000,-151.0,0.0001965,2]
[422902985,1779597040000,-500.0,0.0001965,2]
[422902987,1779597040000,-151.0,0.0001965,2]
[422902988,1779597040000,-500.0,0.0001965,2]
[422902986,1779597040000,-151.0,0.0001965,2]
[422902997,1779597040000,-300.0,0.000199,7]
[422902989,1779597040000,-151.0,0.0001965,2]
[422902990,1779597040000,-151.0,0.0001965,2]
[422902991,1779597040000,-500.0,0.0001965,2]
[422902992,1779597040000,-521.20369368,0.0001965,2]
[422902996,1779597040000,-3443.20271129,0.000199,3]
[422902993,1779597040000,-1700.0,0.000198,7]
[422902994,1779597040000,-12329.98619286,0.00019844,2]
[422902995,1779597040000,-210.44548877,0.00019845,2]
[422902998,1779597040000,-500.0,0.000199,2]
[422903000,1779597040000,-292.22526449,0.00019934,2]
[422902967,1779597040000,-307.70715698,0.0001965,2]
[422902965,1779597040000,-500.0,0.0001965,2]
[422902941,1779597040000,-151.0,0.0001965,2]
[422902963,1779597040000,-151.0,0.0001965,2]
[422902974,1779597040000,-151.0,0.0001965,2]
[422902939,1779597040000,-151.0,0.0001965,2]
[422902944,1779597040000,-500.0,0.0001965,2]
[422902942,1779597040000,-151.0,0.0001965,2]
[422902937,1779597040000,-221.88543241,0.0001965,2]
[422902943,1779597040000,-238.60871557,0.0001965,2]
[422902940,1779597040000,-230.09519341,0.0001965,2]
[422902948,1779597040000,-500.0,0.0001965,2]
[422902959,1779597040000,-151.0,0.0001965,2]
[422902951,1779597040000,-151.0,0.0001965,2]
[422902954,1779597040000,-151.0,0.0001965,2]
[422902952,1779597040000,-500.0,0.0001965,2]
[422902949,1779597040000,-256.59241585,0.0001965,2]
[422902953,1779597040000,-266.08633524,0.0001965,2]
[422902950,1779597040000,-151.0,0.0001965,2]
[422902960,1779597040000,-286.14099624,0.0001965,2]
[422902961,1779597040000,-500.0,0.0001965,2]
[422902964,1779597040000,-296.7282131,0.0001965,2]
[422902972,1779597040000,-151.0,0.0001965,2]
[422902973,1779597040000,-500.0,0.0001965,2]
[422902970,1779597040000,-319.18818048,0.0001965,2]
[422902966,1779597040000,-151.0,0.0001965,2]
[422902971,1779597040000,-151.0,0.0001965,2]
[422902962,1779597040000,-151.0,0.0001965,2]
[422902956,1779597040000,-500.0,0.0001965,2]
[422902955,1779597040000,-151.0,0.0001965,2]
[422902958,1779597040000,-151.0,0.0001965,2]
[422902957,1779597040000,-275.93152964,0.0001965,2]
[422902969,1779597040000,-500.0,0.0001965,2]
[422903045,1779597041000,-251.64801,0.00019944,2]
[422903042,1779597041000,-162.469386,0.00019944,2]
[422903037,1779597041000,-1245.13,0.00019944,2]
[422903040,1779597041000,-1245.13,0.00019944,2]
[422903039,1779597041000,-1245.13,0.00019944,2]
[422903032,1779597041000,-1245.13,0.00019944,2]
[422903047,1779597041000,-251.64801,0.00019944,2]
[422903046,1779597041000,-251.64801,0.00019944,2]
[422903036,1779597041000,-1245.13,0.00019944,2]
[422903030,1779597041000,-500.0,0.00019944,2]
[422903041,1779597041000,-151.0,0.00019944,2]
[422903035,1779597041000,-1245.13,0.00019944,2]
[422903044,1779597041000,-151.0,0.00019944,2]
[422903060,1779597041000,-3183.0002051,0.00019944,2]
[422903048,1779597041000,-251.64801,0.00019944,2]
[422903051,1779597041000,-251.64801,0.00019944,2]
[422903050,1779597041000,-251.64801,0.00019944,2]
[422903059,1779597041000,-2198520.0784,0.00019944,2]
[422903049,1779597041000,-251.64801,0.00019944,2]
[422903052,1779597041000,-251.64801,0.00019944,2]
[422903057,1779597041000,-151.0,0.00019944,2]
[422903058,1779597041000,-151.0,0.00019944,2]
[422903053,1779597041000,-500.0,0.00019944,2]
[422903055,1779597041000,-500.0,0.00019944,2]
[422903054,1779597041000,-500.0,0.00019944,2]
[422903070,1779597041000,-1554.19411631,0.0002,2]
[422903034,1779597041000,-1245.13,0.00019944,2]
[422903043,1779597041000,-151.0,0.00019944,2]
[422903033,1779597041000,-1245.13,0.00019944,2]
[422903018,1779597041000,-151.0,0.00019944,2]
[422903027,1779597041000,-500.0,0.00019944,2]
[422903003,1779597041000,-151.0,0.00019944,2]
[422903002,1779597041000,-151.0,0.00019944,2]
[422903001,1779597041000,-254.1230272,0.00019943,2]
[422903009,1779597041000,-500.0,0.00019944,2]
[422903008,1779597041000,-500.0,0.00019944,2]
[422903006,1779597041000,-500.0,0.00019944,2]
[422903005,1779597041000,-151.0,0.00019944,2]
[422903007,1779597041000,-232.65576228,0.00019944,2]
[422903004,1779597041000,-500.0,0.00019944,2]
[422903014,1779597041000,-234.710531,0.00019944,2]
[422903010,1779597041000,-500.0,0.00019944,2]
[422903012,1779597041000,-234.710531,0.00019944,2]
[422903011,1779597041000,-509.01520863,0.00019944,2]
[422903028,1779597041000,-500.0,0.00019944,2]
[422903013,1779597041000,-234.710531,0.00019944,2]
[422903017,1779597041000,-151.0,0.00019944,2]
[422903066,1779597041000,-157.0,0.0002,2]
[422903020,1779597041000,-151.0,0.00019944,2]
[422903021,1779597041000,-152.113508,0.00019944,2]
[422903016,1779597041000,-151.0,0.00019944,2]
[422903019,1779597041000,-151.0,0.00019944,2]
[422903022,1779597041000,-500.0,0.00019944,2]
[422903023,1779597041000,-500.0,0.00019944,2]
[422903024,1779597041000,-500.0,0.00019944,2]
[422903026,1779597041000,-500.0,0.00019944,2]
[422903025,1779597041000,-501.54002188,0.00019944,2]
[422903031,1779597041000,-151.0,0.00019944,2]
[422903029,1779597041000,-500.0,0.00019944,2]
[422903015,1779597041000,-234.710531,0.00019944,2]
[422903069,1779597041000,-351.0,0.0002,2]
[422903038,1779597041000,-1245.13,0.00019944,2]
[422903068,1779597041000,-155.0,0.0002,2]
[422903100,1779597041000,-151.0,0.00020198,2]
[422903103,1779597041000,-745.6,0.00020381,2]
[422903104,1779597041000,-1832.9781872,0.00020405,2]
[422903108,1779597041000,-150.0,0.0002058,2]
[422903099,1779597041000,-300.01498938,0.000201,2]
[422903101,1779597041000,-200.0,0.00020198,2]
[422903102,1779597041000,-1865.36488656,0.00020198,2]
[422903110,1779597041000,-150.0,0.0002058,2]
[422903109,1779597041000,-150.0,0.0002058,2]
[422903107,1779597041000,-150.0,0.0002058,2]
[422903106,1779597041000,-150.0,0.0002058,2]
[422903105,1779597041000,-208.44,0.00020574,2]
[422903117,1779597041000,-200.0,0.00020746,2]
[422903118,1779597041000,-1934.38338736,0.00020746,2]
[422903119,1779597041000,-157.0,0.00021,2]
[422903111,1779597041000,-150.0,0.0002058,2]
[422903112,1779597041000,-150.23722778,0.0002058,2]
[422903121,1779597041000,-155.0,0.00021,2]
[422903120,1779597041000,-688.0,0.00021,2]
[422903122,1779597041000,-351.0,0.00021,2]
[422903114,1779597041000,-22975.69202751,0.000207,2]
[422903113,1779597041000,-5758.32553727,0.00020678,2]
[422903115,1779597041000,-1561.13,0.000207,2]
[422903124,1779597041000,-359.0,0.00021,2]
[422903116,1779597041000,-255.29299349,0.00020746,2]
[422903123,1779597041000,-168.0,0.00021,2]
[422903125,1779597041000,-225.0,0.00021,2]
[422903126,1779597041000,-1209.73914843,0.00021,2]
[422903061,1779597041000,-487.0,0.00019944,2]
[422903098,1779597041000,-208.44,0.00020084,2]
[422903088,1779597041000,-152.0,0.0002,2]
[422903056,1779597041000,-154.286921,0.00019944,2]
[422903090,1779597041000,-154.0,0.0002,2]
[422903067,1779597041000,-688.0,0.0002,2]
[422903064,1779597041000,-284290.84112361,0.0001995,15]
[422903063,1779597041000,-759.63,0.00019944,2]
[422903062,1779597041000,-487.0,0.00019944,2]
[422903089,1779597041000,-783.39039363,0.0002,2]
[422903071,1779597041000,-178.83610398,0.0002,2]
[422903073,1779597041000,-359.0,0.0002,2]
[422903079,1779597041000,-26784.60920099,0.0002,2]
[422903076,1779597041000,-225.0,0.0002,2]
[422903078,1779597041000,-3329.87230189,0.0002,20]
[422903075,1779597041000,-25930.3412314,0.0002,2]
[422903074,1779597041000,-1491.67519646,0.0002,5]
[422903072,1779597041000,-155.0,0.0002,2]
[422903077,1779597041000,-3950.0,0.0002,2]
[422903065,1779597041000,-292.22526449,0.0001999,2]
[422903084,1779597041000,-1059.11818865,0.0002,2]
[422903092,1779597041000,-2000.0,0.0002,7]
[422903082,1779597041000,-507.06774107,0.0002,10]
[422903086,1779597041000,-13096.83015203,0.0002,2]
[422903091,1779597041000,-1400.0,0.0002,12]
[422903087,1779597041000,-163.15671991,0.0002,14]
[422903096,1779597041000,-176.04808047,0.0002,2]
[422903085,1779597041000,-52346.3177061,0.0002,2]
[422903094,1779597041000,-176.04808047,0.0002,2]
[422903095,1779597041000,-176.04808047,0.0002,2]
[422903093,1779597041000,-176.04808047,0.0002,2]
[422903080,1779597041000,-1312.09097925,0.0002,2]
[422903081,1779597041000,-624.92369216,0.0002,2]
[422903097,1779597041000,-176.0480805,0.0002,2]
[422903083,1779597041000,-200.0,0.0002,2]
[422903148,1779597042000,-234.710531,0.00021315,2]
[422903138,1779597042000,-2005.9555727,0.00021294,2]
[422903142,1779597042000,-151.0,0.00021315,2]
[422903143,1779597042000,-151.0,0.00021315,2]
[422903147,1779597042000,-234.710531,0.00021315,2]
[422903146,1779597042000,-154.589351,0.00021315,2]
[422903145,1779597042000,-151.0,0.00021315,2]
[422903140,1779597042000,-168.94,0.000213,4]
[422903141,1779597042000,-151.0,0.00021315,2]
[422903144,1779597042000,-257.801114,0.00021315,2]
[422903129,1779597042000,-154.0,0.00021,2]
[422903131,1779597042000,-300.32482051,0.000211,2]
[422903136,1779597042000,-180.32779079,0.00021204,2]
[422903132,1779597042000,-150.76204261,0.000211,2]
[422903130,1779597042000,-208.44,0.00021064,2]
[422903135,1779597042000,-390.94283911,0.000212,2]
[422903134,1779597042000,-443.67969396,0.000212,2]
[422903137,1779597042000,-200.0,0.00021294,2]
[422903133,1779597042000,-215.34753388,0.00021172,2]
[422903128,1779597042000,-3414.42120023,0.00021,7]
[422903127,1779597042000,-199.66013812,0.00021,2]
[422903139,1779597042000,-300.32482051,0.000213,2]
[422903149,1779597042000,-234.710531,0.00021315,2]
[422903152,1779597042000,-151.0,0.00021315,2]
[422903153,1779597042000,-151.0,0.00021315,2]
[422903151,1779597042000,-151.0,0.00021315,2]
[422903172,1779597042000,-13662.94983067,0.00021315,2]
[422903173,1779597042000,-2410.0,0.00021315,2]
[422903171,1779597042000,-5186.96950047,0.00021315,2]
[422903169,1779597042000,-519.56113632,0.00021315,2]
[422903170,1779597042000,-334.08,0.00021315,2]
[422903168,1779597042000,-764100.50008922,0.00021315,2]
[422903166,1779597042000,-369.6424995,0.00021315,2]
[422903165,1779597042000,-668684.18799374,0.00021315,2]
[422903162,1779597042000,-251.64801,0.00021315,2]
[422903167,1779597042000,-350.33533698,0.00021315,2]
[422903163,1779597042000,-786.07309635,0.00021315,2]
[422903154,1779597042000,-151.0,0.00021315,2]
[422903157,1779597042000,-151.0,0.00021315,2]
[422903158,1779597042000,-164.403719,0.00021315,2]
[422903159,1779597042000,-251.64801,0.00021315,2]
[422903164,1779597042000,-151.0,0.00021315,2]
[422903150,1779597042000,-234.710531,0.00021315,2]
[422903156,1779597042000,-151.0,0.00021315,2]
[422903160,1779597042000,-251.64801,0.00021315,2]
[422903161,1779597042000,-251.64801,0.00021315,2]
[422903155,1779597042000,-151.0,0.00021315,2]
[422903185,1779597043000,-9167.64423464,0.00021315,2]
[422903182,1779597043000,-639.42,0.00021315,2]
[422903181,1779597043000,-1208.68179918,0.00021315,2]
[422903189,1779597043000,-500.0,0.00021398,3]
[422903187,1779597043000,-6470.94,0.0002137,2]
[422903188,1779597043000,-500.0,0.00021398,2]
[422903191,1779597043000,-500.0,0.00021398,5]
[422903190,1779597043000,-500.0,0.00021398,4]
[422903183,1779597043000,-16033.9192532,0.00021315,2]
[422903186,1779597043000,-16624.43959439,0.00021315,2]
[422903192,1779597043000,-500.0,0.00021398,6]
[422903184,1779597043000,-707.66873169,0.00021315,2]
[422903199,1779597043000,-58907.07040459,0.00021415,2]
[422903200,1779597043000,-1324.41,0.00021415,2]
[422903197,1779597043000,-25185.09522711,0.00021415,2]
[422903198,1779597043000,-5150.1480779,0.00021415,2]
[422903195,1779597043000,-100179.85093697,0.00021415,2]
[422903193,1779597043000,-443.67969396,0.000214,2]
[422903194,1779597043000,-390.94283911,0.000214,2]
[422903196,1779597043000,-1253.48224332,0.00021415,2]
[422903264,1779597046000,-10224.21749446,0.00021415,2]
[422903263,1779597046000,-649.2,0.00021415,2]
[422903262,1779597046000,-571.82945458,0.00021415,2]
[422903261,1779597046000,-319.71,0.00021415,2]
[422903260,1779597046000,-903.35986595,0.00021415,2]
[422903267,1779597094000,178.02,0.00025922,120]
[422903268,1779597466000,500.0,0.0002763,120]